bitfinex/quotes_ETHUSD_20220311
["timestamp","ask_amount","ask_price","bid_price","bid_amount"]
[1646987463888,0.01433309,2596.7,2596.5,0.0171997]
[1646987464084,0.01433309,2596.7,2596.6,0.84655927]
[1646987464994,0.01433309,2596.7,2596.6,1.08246746]
[1646987465189,0.01433309,2596.7,2596.6,1.46586746]
[1646987465387,0.01433309,2596.7,2596.6,1.46666746]
[1646987465587,0.01433309,2596.7,2596.6,1.45706746]
[1646987465787,0.01433309,2596.7,2596.6,1.46026746]
[1646987465988,0.01433309,2596.7,2596.6,1.07366746]
[1646987466288,0.01433309,2596.7,2596.6,1.06886746]
[1646987466491,0.01433309,2596.7,2596.6,0.91606746]
[1646987467042,0.013242,2596.7,2596.6,1.07606746]
[1646987467237,0.013242,2596.7,2596.6,1.07206746]
[1646987467438,0.013242,2596.7,2596.6,1.07046746]
[1646987467639,0.013242,2596.7,2596.6,0.91606746]
[1646987468242,0.013242,2596.7,2596.6,0.06950819]
[1646987468847,0.013242,2596.7,2596.5,0.17081165]
[1646987469047,0.013242,2596.7,2596.6,0.06685135]
[1646987469250,0.013242,2596.7,2596.6,0.91768508]
[1646987469745,0.013242,2596.7,2596.6,1.07608508]
[1646987469948,0.013242,2596.7,2596.6,1.07448508]
[1646987470148,8.8894009,2597.0,2596.6,1.07448508]
[1646987470149,8.84387314,2597.0,2596.6,1.07048508]
[1646987470347,8.84387314,2597.0,2596.6,1.07448508]
[1646987470599,0.00401091,2597.2,2596.8,3.5]
[1646987471004,0.05608037,2597.5,2596.6,0.148]
[1646987471198,0.05608037,2597.5,2596.5,0.0171997]
[1646987471199,0.462,2597.3,2596.5,0.0171997]
[1646987471398,0.06393439,2597.2,2596.8,0.00401174]
[1646987472397,0.06393439,2597.2,2596.5,0.0171997]
[1646987472398,0.0599233,2597.2,2596.5,0.0171997]
[1646987472601,0.06385965,2597.2,2596.8,0.00393698]
[1646987473501,0.0599233,2597.2,2596.5,0.0171997]
[1646987473701,0.88136767,2597.2,2596.5,0.0171997]
[1646987473902,0.06584143,2597.1,2596.5,0.0171997]
[1646987474102,4.02784143,2597.1,2596.5,0.0171997]
[1646987474340,0.04777314,2597.0,2596.5,0.0171997]
[1646987474648,0.05370306,2596.9,2596.5,0.0171997]
[1646987476246,0.04101338,2596.7,2596.5,0.0171997]
[1646987477347,0.04101338,2596.7,2596.5,0.02142779]
[1646987478186,0.04101338,2596.7,2596.5,0.0171997]
[1646987478386,0.06070358,2596.6,2596.5,0.0171997]
[1646987478587,0.06070358,2596.6,2596.5,0.02142779]
[1646987478990,0.52270358,2596.6,2596.5,0.02142779]
[1646987479186,1.39579009,2596.6,2596.5,0.02142779]
[1646987479586,1.39579009,2596.6,2596.5,0.0171997]
[1646987480287,0.52270358,2596.6,2596.5,0.0171997]
[1646987486184,0.54295098,2596.6,2596.5,0.0171997]
[1646987487993,6.46272151,2596.6,2596.5,0.0171997]
[1646987488194,3.15522151,2596.6,2596.5,0.0171997]
[1646987488394,4.15522151,2596.6,2596.5,0.0171997]
[1646987488593,4.34915188,2596.6,2596.5,0.0171997]
[1646987489245,2.32102151,2596.6,2596.5,0.0171997]
[1646987489835,2.51495188,2596.6,2596.5,0.0171997]
[1646987490035,2.32245188,2596.6,2596.5,0.0171997]
[1646987490535,0.73688135,2596.6,2596.5,0.0171997]
[1646987492235,0.54295098,2596.6,2596.5,0.0171997]
[1646987493487,1.54295098,2596.6,2596.5,0.0171997]
[1646987497035,3.12858093,2596.6,2596.5,0.0171997]
[1646987497233,1.54295098,2596.6,2596.5,0.0171997]
[1646987501192,0.54295098,2596.6,2596.5,0.0171997]
[1646987503592,0.54295098,2596.6,2596.3,0.02945261]
[1646987503796,0.54295098,2596.6,2596.4,0.00389806]
[1646987504633,0.05158059,2596.5,2596.3,0.02945261]
[1646987504835,0.462,2596.4,2596.3,0.02945261]
[1646987513651,0.50291991,2596.4,2596.3,0.02945261]
[1646987516496,0.50291991,2596.4,2596.0,0.0191234]
[1646987516702,0.50291991,2596.4,2595.7,0.2786087]
[1646987516703,5.5,2596.2,2595.7,0.2786087]
[1646987516903,5.5,2596.2,2595.8,0.01444912]
[1646987516904,5.78832645,2596.1,2595.8,0.01444912]
[1646987517101,1.58552498,2596.0,2595.8,0.01444912]
[1646987517300,3.55685071,2595.9,2595.8,0.01444912]
[1646987517498,3.29687569,2595.9,2595.8,0.01444912]
[1646987517699,3.10437569,2595.9,2595.8,0.01444912]
[1646987517899,0.462,2595.9,2595.7,0.0286087]
[1646987518102,1.0,2595.8,2595.5,0.0234451]
[1646987518301,3.5,2595.8,2595.5,0.0234451]
[1646987518502,0.462,2595.7,2595.5,0.0234451]
[1646987518703,0.52201179,2595.7,2595.5,0.0234451]
[1646987519004,0.462,2595.7,2595.5,0.0234451]
[1646987519438,1.462,2595.7,2595.5,0.0234451]
[1646987520439,0.25341841,2595.6,2595.5,0.0234451]
[1646987520638,0.71541841,2595.6,2595.5,0.02762853]
[1646987521244,0.71541841,2595.6,2595.1,1.19763963]
[1646987521650,0.71541841,2595.6,2595.2,0.08078853]
[1646987521847,0.25341841,2595.6,2595.4,0.00418348]
[1646987522446,0.25341841,2595.6,2595.5,0.99840266]
[1646987522646,0.25341841,2595.6,2595.5,1.07741059]
[1646987523689,0.05082867,2595.6,2595.5,0.99840266]
[1646987524295,0.05082867,2595.6,2595.1,1.80003283]
[1646987524690,0.05082867,2595.6,2595.1,2.57039723]
[1646987525292,0.05082867,2595.6,2595.2,0.00418366]
[1646987525893,0.05082867,2595.6,2595.3,0.84794469]
[1646987526494,0.05082867,2595.6,2595.3,0.85212826]
[1646987526745,0.25341841,2595.5,2595.3,0.85212826]
[1646987527536,0.05082867,2595.6,2595.3,0.84794469]
[1646987527736,0.05082867,2595.6,2595.4,4.0]
[1646987528342,0.05082867,2595.6,2595.4,0.96284]
[1646987528641,0.05082867,2595.6,2595.4,1.34624]
[1646987529042,0.05082867,2595.6,2595.4,1.35042352]
[1646987529243,0.05082867,2595.6,2595.4,1.06160232]
[1646987529842,0.05082867,2595.6,2595.4,0.6740188]
[1646987530042,0.05082867,2595.6,2595.3,0.84794469]
[1646987530242,0.05082867,2595.6,2595.4,0.00404547]
[1646987531093,0.05082867,2595.6,2595.1,1.41663283]
[1646987531494,0.05082867,2595.6,2595.4,0.00404547]
[1646987532293,0.05082867,2595.6,2595.3,1.06107466]
[1646987532695,0.05082867,2595.6,2595.4,0.00404547]
[1646987533500,0.05082867,2595.6,2595.3,1.06107466]
[1646987533899,0.05082867,2595.6,2595.4,0.06988164]
[1646987537437,0.05082867,2595.6,2595.4,0.07406092]
[1646987538292,0.05082867,2595.6,2595.4,0.06988164]
[1646987538493,0.05082867,2595.6,2595.4,3.57406092]
[1646987538693,0.05082867,2595.6,2595.5,0.08068887]
[1646987544445,0.05082867,2595.6,2595.3,1.06107466]
[1646987545799,0.05082867,2595.6,2595.3,1.06515996]
[1646987546800,0.05082867,2595.6,2595.3,1.06107466]
[1646987546998,0.05082867,2595.6,2595.3,1.06515996]
[1646987548000,0.05082867,2595.6,2595.3,1.06107466]
[1646987548202,0.05082867,2595.6,2595.3,1.06515996]
[1646987549252,0.05082867,2595.6,2595.3,1.06107466]
[1646987549441,0.05082867,2595.6,2595.3,1.06495132]
[1646987549941,1.0,2595.4,2595.3,4.56495132]
[1646987550360,0.04849162,2596.2,2595.4,5.5]
[1646987550542,0.00375321,2595.9,2595.6,0.06787392]
[1646987550743,5.321e-05,2595.9,2595.7,0.39614678]
[1646987550941,5.321e-05,2595.9,2595.8,7.07781269]
[1646987551141,5.321e-05,2595.9,2595.8,8.46461269]
[1646987551345,5.321e-05,2595.9,2595.8,20.17501269]
[1646987551543,0.39708304,2597.1,2595.9,0.07409611]
[1646987551746,0.01188304,2597.1,2596.2,0.45546872]
[1646987551942,0.01188304,2597.1,2596.4,0.07729131]
[1646987552141,0.01188304,2597.1,2596.9,0.97095021]
[1646987552342,0.01188304,2597.1,2596.4,0.079204]
[1646987552542,0.01188304,2597.1,2596.4,0.07729131]
[1646987553191,0.00149319,2596.9,2596.4,0.07729131]
[1646987553593,0.00149319,2596.9,2596.8,1.03131552]
[1646987553998,0.01188304,2597.1,2596.8,1.03131552]
[1646987554194,0.00389583,2597.0,2596.4,0.07729131]
[1646987555300,0.01188304,2597.1,2596.6,1.00065708]
[1646987555499,0.00389596,2596.8,2596.6,1.00065708]
[1646987556096,0.00389596,2596.8,2596.5,0.1925]
[1646987556299,0.01188304,2597.1,2596.5,0.1925]
[1646987556750,0.00388777,2596.8,2596.5,0.1925]
[1646987557140,0.00388777,2596.8,2596.7,1.03036011]
[1646987557341,0.00388777,2596.8,2596.4,0.07729131]
[1646987557541,0.01188304,2597.1,2596.4,0.07729131]
[1646987557941,0.00388772,2596.9,2596.4,0.07729131]
[1646987558344,0.00388772,2596.9,2596.3,0.9731215]
[1646987558845,0.05802353,2597.0,2596.3,0.9731215]
[1646987559045,0.00377122,2596.7,2596.3,0.9731215]
[1646987560044,0.05802353,2597.0,2596.3,0.9731215]
[1646987560246,0.00377186,2596.6,2596.3,0.9731215]
[1646987561091,0.05802353,2597.0,2596.3,0.9731215]
[1646987561496,0.00377191,2596.6,2596.3,0.9731215]
[1646987562397,0.05802353,2597.0,2596.2,7.2696]
[1646987562595,0.00357377,2596.6,2596.1,12.609]
[1646987562794,0.00357377,2596.6,2596.1,2.3909]
[1646987562997,0.46557377,2596.6,2595.8,1.2192]
[1646987563198,0.05888845,2596.4,2595.8,1.2192]
[1646987563494,0.97574776,2596.2,2595.5,0.00191269]
[1646987563694,0.51572687,2596.1,2595.4,1.12798946]
[1646987563897,0.04706481,2596.0,2595.6,0.00357881]
[1646987564094,0.50906481,2596.0,2595.6,0.00357881]
[1646987564344,0.05749176,2595.9,2595.6,0.00357881]
[1646987564547,0.04707874,2595.8,2595.6,0.00357881]
[1646987564746,0.04707874,2595.8,2595.1,0.25105232]
[1646987564942,0.04707874,2595.8,2595.1,0.24913963]
[1646987565146,0.04707874,2595.8,2595.6,0.00357861]
[1646987566046,0.04707874,2595.8,2595.2,0.90769153]
[1646987566245,0.04707874,2595.8,2595.6,0.0035876]
[1646987567248,0.04707874,2595.8,2595.2,0.90769153]
[1646987567449,0.04707874,2595.8,2595.6,0.00359397]
[1646987568298,0.04707874,2595.8,2595.2,0.90769153]
[1646987568506,0.04707874,2595.8,2595.1,0.05663963]
[1646987568698,0.04707874,2595.8,2595.6,0.00359397]
[1646987569499,0.04707874,2595.8,2595.1,0.05855232]
[1646987569701,0.04707874,2595.8,2595.1,0.05663963]
[1646987569702,0.36160462,2595.6,2595.1,0.05663963]
[1646987569903,3.962,2595.5,2595.1,0.05663963]
[1646987570101,0.06167742,2595.4,2595.1,0.05663963]
[1646987570299,0.06062644,2595.2,2595.1,0.05663963]
[1646987570500,0.462,2595.2,2595.1,0.05663963]
[1646987571754,3.962,2595.2,2595.1,0.05663963]
[1646987571946,0.6545,2595.2,2595.1,0.05663963]
[1646987572241,1.72060762,2595.2,2595.1,0.05663963]
[1646987572542,0.6545,2595.2,2595.1,0.05663963]
[1646987574546,1.14719491,2595.0,2594.8,0.0198134]
[1646987574749,1.14719491,2595.0,2594.7,0.0459223]
[1646987574750,0.32190919,2594.8,2594.7,0.0459223]
[1646987574949,0.78390919,2594.8,2594.7,0.0459223]
[1646987576397,1.78390919,2594.8,2594.7,0.0459223]
[1646987576795,5.5,2594.7,2594.6,0.0292292]
[1646987576996,5.962,2594.7,2594.6,0.0292292]
[1646987577294,6.00928551,2594.7,2594.6,0.0292292]
[1646987577498,7.39173,2594.6,2594.2,0.0693357]
[1646987577694,0.94220402,2594.4,2594.2,0.0693357]
[1646987577896,7.42783,2594.2,2594.0,0.0292592]
[1646987578104,3.962,2594.1,2594.0,0.0292592]
[1646987578299,5.5,2594.0,2593.9,0.03576582]
[1646987578498,3.5,2593.9,2593.8,0.0461911]
[1646987578701,4.00925181,2593.9,2593.8,0.0461911]
[1646987578902,5.07499235,2593.9,2593.8,0.0461911]
[1646987579098,6.03905235,2593.9,2593.8,0.0461911]
[1646987579851,8.03905235,2593.9,2593.8,0.0461911]
[1646987580251,10.53905235,2593.9,2593.8,0.0461911]
[1646987580454,0.95343751,2593.4,2593.3,0.0286997]
[1646987580651,2.43164321,2593.4,2593.3,0.0286997]
[1646987581050,4.5,2593.3,2593.2,0.01222328]
[1646987581252,4.962,2593.3,2593.2,0.01222328]
[1646987581655,0.462,2593.3,2593.2,0.01222328]
[1646987583194,1.43382092,2593.3,2593.2,0.01010328]
[1646987583595,3.962,2593.3,2593.2,0.01010328]
[1646987583798,0.462,2593.3,2593.2,0.01010328]
[1646987584005,4.962,2593.3,2593.2,0.01010328]
[1646987584595,1.462,2593.3,2593.2,0.01010328]
[1646987584798,2.5561913,2593.3,2593.2,0.01010328]
[1646987585196,2.5561913,2593.3,2593.2,0.01403871]
[1646987585402,6.0561913,2593.3,2593.2,0.01013871]
[1646987585598,6.0561913,2593.3,2593.0,0.01269783]
[1646987585599,0.04848532,2593.1,2593.0,0.01269783]
[1646987585798,0.51048532,2593.1,2593.0,0.01269783]
[1646987586199,1.51048532,2593.1,2593.0,0.01269783]
[1646987586398,5.01048532,2593.1,2593.0,0.01269783]
[1646987586602,1.51048532,2593.1,2593.0,0.01269783]
[1646987587250,2.47483532,2593.1,2593.0,0.01269783]
[1646987587454,1.51048532,2593.1,2593.0,0.01269783]
[1646987587849,0.51048532,2593.1,2593.0,0.01269783]
[1646987589260,14.2,2593.0,2592.5,0.08787485]
[1646987589455,14.2,2593.0,2592.5,0.07704897]
[1646987589456,0.51536541,2592.9,2592.5,0.07704897]
[1646987589655,0.04881552,2592.8,2592.5,0.07704897]
[1646987589854,0.462,2592.7,2592.5,0.07704897]
[1646987590054,0.0577287,2592.6,2592.5,0.0682622]
[1646987590254,0.5197287,2592.6,2592.5,0.0682622]
[1646987590693,0.462,2592.6,2592.5,0.0682622]
[1646987594662,0.462,2592.6,2592.5,0.07073448]
[1646987596163,5.14173,2593.4,2592.5,0.07073448]
[1646987596164,0.1928,2593.3,2592.5,0.07073448]
[1646987596363,0.462,2593.2,2592.5,0.07073448]
[1646987596564,0.0552574,2593.1,2592.5,0.07073448]
[1646987596763,0.462,2593.0,2592.5,0.07073448]
[1646987597768,0.05716054,2592.9,2592.6,0.00386189]
[1646987598003,0.462,2592.8,2592.6,0.00386189]
[1646987598206,1.06192244,2593.1,2592.6,0.00386189]
[1646987598207,0.462,2593.0,2592.6,0.00386189]
[1646987598407,0.05590602,2592.9,2592.5,0.07073448]
[1646987598608,0.1928,2593.2,2592.5,0.07073448]
[1646987598609,0.462,2592.8,2592.5,0.07073448]
[1646987598809,0.462,2592.8,2592.6,0.0038011]
[1646987599613,0.462,2592.8,2592.5,0.07073448]
[1646987599814,1.462,2592.8,2592.5,0.07073448]
[1646987600011,2.12152,2593.1,2592.6,0.0038011]
[1646987600216,1.0,2593.7,2592.7,5.0]
[1646987600416,1.0,2593.7,2593.3,0.01284326]
[1646987600615,0.00379936,2593.8,2593.4,5.5]
[1646987600913,3.38,2594.6,2593.4,5.5]
[1646987600914,12.9303,2594.5,2593.4,5.5]
[1646987601111,0.9221993,2594.2,2593.5,0.0774426]
[1646987601311,0.00179349,2593.8,2593.5,0.0774426]
[1646987602146,0.462,2594.1,2593.2,0.00191269]
[1646987602343,0.462,2594.1,2593.1,0.08915634]
[1646987602344,0.00380684,2593.8,2593.1,0.08915634]
[1646987602541,0.00380684,2593.8,2593.1,0.47255634]
[1646987603146,0.00380684,2593.8,2593.4,0.07746272]
[1646987603346,0.462,2594.1,2593.4,0.07746272]
[1646987603647,0.00380674,2593.8,2593.4,0.07746272]
[1646987604546,0.462,2594.1,2593.4,0.07746272]
[1646987604749,0.00380684,2593.8,2593.4,3.57746272]
[1646987605045,0.00380684,2593.8,2593.5,0.09030762]
[1646987605695,1.4258,2594.4,2593.5,0.09030762]
[1646987605894,0.00380771,2593.8,2593.5,0.09030762]
[1646987606993,0.462,2594.2,2593.5,0.09030762]
[1646987607194,0.00380771,2593.8,2593.5,0.09030762]
[1646987607399,0.00380771,2593.8,2593.2,0.00191269]
[1646987607400,3.0,2593.7,2593.2,0.00191269]
[1646987607597,0.00380771,2593.8,2593.0,0.00191269]
[1646987607598,3.962,2593.6,2593.0,0.00191269]
[1646987607797,0.00573807,2593.1,2592.8,0.00380919]
[1646987608206,0.00573807,2593.1,2592.6,0.26463462]
[1646987608402,0.00573807,2593.1,2592.8,0.00380895]
[1646987608601,0.00573807,2593.1,2592.9,0.27444256]
[1646987609259,0.00573807,2593.1,2592.9,0.08164256]
[1646987609849,0.00573807,2593.1,2593.0,0.1928]
[1646987610451,0.00573807,2593.1,2593.0,0.26871959]
[1646987612250,0.00573807,2593.1,2593.0,0.79931959]
[1646987612450,0.00573807,2593.1,2593.0,0.65211959]
[1646987615217,0.00573807,2593.1,2593.0,0.80011959]
[1646987615412,0.00573807,2593.1,2593.0,0.80251959]
[1646987615614,0.00573807,2593.1,2593.0,0.80731959]
[1646987615812,0.00573807,2593.1,2593.0,0.80491959]
[1646987616013,0.00573807,2593.1,2593.0,0.80811959]
[1646987616212,0.00573807,2593.1,2593.0,0.79851959]
[1646987616412,0.00573807,2593.1,2593.0,0.79691959]
[1646987616612,0.00573807,2593.1,2593.0,0.79851959]
[1646987616843,0.00573807,2593.1,2593.0,0.80011959]
[1646987617044,3.807e-05,2593.1,2593.0,3.80091959]
[1646987617251,3.807e-05,2593.1,2593.0,4.00542298]
[1646987617443,3.807e-05,2593.1,2593.0,16.70581298]
[1646987617644,3.807e-05,2593.1,2593.0,16.71861298]
[1646987617849,3.6928,2594.7,2593.6,0.08612437]
[1646987618052,0.32190919,2594.8,2593.7,1.43203451]
[1646987618053,0.00179341,2593.8,2593.7,1.43203451]
[1646987618847,0.32190919,2594.8,2594.0,0.96344]
[1646987619048,0.32190919,2594.8,2594.1,0.07810281]
[1646987619949,0.32190919,2594.8,2594.1,1.12423207]
[1646987620355,0.00179381,2594.6,2594.0,0.175923]
[1646987620594,0.00179381,2594.6,2594.0,0.25389724]
[1646987621402,0.32190919,2594.8,2594.0,0.175923]
[1646987621597,0.00412801,2594.4,2594.0,0.175923]
[1646987621794,0.00412801,2594.4,2593.9,0.06851234]
[1646987622598,0.04449446,2594.7,2593.9,0.06851234]
[1646987622800,0.00412815,2594.3,2593.9,0.06851234]
[1646987623803,0.04449446,2594.7,2593.9,0.06851234]
[1646987624002,0.0041282,2594.2,2593.9,0.06851234]
[1646987624853,0.04449446,2594.7,2593.9,0.06851234]
[1646987625255,0.00412824,2594.2,2593.9,0.06851234]
[1646987626056,0.90822316,2594.5,2593.9,0.06851234]
[1646987626457,0.00398891,2594.2,2593.8,0.96353]
[1646987627256,0.0497901,2594.4,2593.8,0.96353]
[1646987627457,0.462,2594.3,2593.8,0.96353]
[1646987627658,0.00398895,2594.1,2593.8,0.96353]
[1646987628108,0.00398895,2594.1,2593.6,3.1658615]
[1646987628311,0.00398895,2594.1,2593.6,2.0007615]
[1646987628606,0.462,2594.3,2593.6,2.0007615]
[1646987628807,0.00398908,2594.0,2593.6,2.0007615]
[1646987629708,0.0497901,2594.4,2593.7,0.07378268]
[1646987629908,0.00380313,2593.9,2593.8,0.96357]
[1646987630410,0.00380313,2593.9,2593.6,1.92703]
[1646987631009,1.08380909,2594.1,2593.6,1.92703]
[1646987631208,0.00380317,2593.9,2593.6,1.92703]
[1646987632045,0.04725828,2594.0,2593.6,1.92703]
[1646987632248,0.04725828,2594.0,2593.4,1.92747]
[1646987632249,0.24876825,2593.9,2593.4,1.92747]
[1646987632446,0.05531277,2593.8,2593.4,1.92747]
[1646987633149,0.98169526,2593.7,2593.4,1.92747]
[1646987633353,0.04898766,2593.6,2593.4,1.92747]
[1646987633549,0.04898766,2593.6,2593.3,1.9276]
[1646987634050,0.462,2593.5,2593.3,1.9276]
[1646987634252,0.0443532,2593.4,2593.3,1.9276]
[1646987635800,0.0443532,2593.4,2593.0,2.12062]
[1646987637403,1.0,2593.1,2593.0,2.12062]
[1646987638811,0.00381461,2593.8,2593.1,5.5]
[1646987639011,0.00381461,2593.8,2593.2,3.5]
[1646987639259,0.00381461,2593.8,2593.0,2.12062]
[1646987639450,0.24027819,2594.1,2593.0,2.12062]
[1646987639651,0.00381489,2593.8,2593.0,2.12253269]
[1646987639850,0.00381489,2593.8,2593.1,3.5]
[1646987640049,0.04582115,2593.8,2593.2,0.9639]
[1646987640649,0.04200626,2593.8,2593.2,0.9639]
[1646987640848,0.04379975,2593.8,2593.2,0.9639]
[1646987641449,0.50579975,2593.8,2593.2,0.9639]
[1646987641653,0.50579975,2593.8,2593.0,2.12062]
[1646987641654,0.92226465,2593.3,2593.0,1.92782]
[1646987641855,0.92226465,2593.3,2593.0,0.96414]
[1646987641856,0.05131008,2593.2,2593.0,0.96414]
[1646987644503,0.51331008,2593.2,2593.0,0.96414]
[1646987644905,0.05324942,2593.1,2593.0,0.96414]
[1646987646761,1.92901642,2593.3,2593.0,0.96414]
[1646987646947,0.96482642,2593.3,2593.0,0.96414]
[1646987647146,0.04256177,2593.3,2593.0,0.96414]
[1646987647749,0.462,2593.3,2593.0,0.96414]
[1646987648152,0.05181622,2593.2,2593.0,0.96414]
[1646987650607,0.51381622,2593.2,2593.0,0.96414]
[1646987650905,0.04218418,2593.1,2593.0,0.96414]
[1646987652305,0.05197365,2593.3,2593.0,0.96414]
[1646987653806,0.04857804,2593.2,2593.0,0.96414]
[1646987656562,0.04857804,2593.2,2592.8,0.00382095]
[1646987657163,1.01279804,2593.2,2592.8,0.00382095]
[1646987657364,0.04857804,2593.2,2592.5,1.99899448]
[1646987657564,0.04857804,2593.2,2592.8,0.00382088]
[1646987658408,0.462,2593.3,2592.8,0.00382088]
[1646987658607,0.462,2593.3,2592.7,1.03658509]
[1646987658809,0.462,2593.3,2592.8,0.00382088]
[1646987659710,0.462,2593.3,2592.5,0.1569264]
[1646987660114,0.462,2593.3,2592.8,0.00382005]
[1646987660115,0.96418,2593.2,2592.8,0.00382005]
[1646987660311,0.50454646,2593.1,2592.8,0.00382005]
[1646987660512,0.04659536,2593.0,2592.8,0.00382005]
[1646987660715,0.462,2592.9,2592.8,0.00382005]
[1646987660913,0.462,2592.9,2592.5,0.07073448]
[1646987661210,0.04656656,2592.8,2592.5,0.07073448]
[1646987661413,0.80291111,2592.9,2592.5,0.07073448]
[1646987661414,0.05369248,2592.6,2592.5,0.07073448]
[1646987661614,0.51569248,2592.6,2592.5,0.07073448]
[1646987662460,0.462,2592.6,2592.5,0.07073448]
[1646987663064,0.412,2592.6,2592.5,0.07073448]
[1646987671560,0.04504916,2592.9,2592.5,0.07073448]
[1646987671761,0.462,2593.0,2592.5,0.07073448]
[1646987671959,4.20121957,2593.2,2592.5,0.07073448]
[1646987672263,0.70121957,2593.2,2592.5,0.07073448]
[1646987673202,0.50841957,2593.2,2592.7,0.00382008]
[1646987673405,0.96427,2593.1,2592.7,0.00382008]
[1646987673603,0.462,2593.1,2592.7,0.00382008]
[1646987673804,1.0,2592.8,2592.7,0.96797008]
[1646987674206,1.0,2592.8,2592.7,0.96415]
[1646987674405,1.0,2592.8,2592.5,0.07073448]
[1646987674606,0.462,2593.1,2592.5,0.07073448]
[1646987675607,0.462,2593.1,2592.7,0.00382009]
[1646987676607,0.462,2593.1,2592.5,0.15619498]
[1646987676857,0.462,2593.1,2592.8,0.00382001]
[1646987677060,1.03152504,2593.1,2592.8,0.00382001]
[1646987677957,1.03152504,2593.1,2592.8,0.00382004]
[1646987678958,0.462,2593.1,2592.7,0.96414]
[1646987679160,0.462,2593.1,2592.8,0.00382004]
[1646987679760,1.42624,2593.1,2592.8,0.00382004]
[1646987680159,1.42624,2593.1,2592.5,0.15619498]
[1646987680361,1.42624,2593.1,2592.8,0.00382004]
[1646987681415,1.42624,2593.1,2592.5,0.15619498]
[1646987681608,1.42624,2593.1,2592.8,0.00382004]
[1646987682207,0.462,2593.1,2592.8,0.00382004]
[1646987682613,0.462,2593.1,2592.5,0.15619498]
[1646987682810,0.462,2593.1,2592.8,0.00382004]
[1646987683410,0.462,2593.1,2592.8,0.96797004]
[1646987683811,0.462,2593.1,2592.8,0.96415]
[1646987684011,0.462,2593.1,2592.8,0.96797004]
[1646987684653,0.9642,2593.4,2592.9,0.08751916]
[1646987684954,1.58759935,2593.3,2592.9,0.08751916]
[1646987685163,2.04959935,2593.3,2592.6,0.00191269]
[1646987685354,2.55187935,2593.2,2592.8,0.00382004]
[1646987685556,1.58759935,2593.1,2592.8,0.00382004]
[1646987686154,0.6548,2593.3,2592.8,0.96414]
[1646987686354,1.58763227,2593.2,2592.8,0.96414]
[1646987686556,1.58763227,2593.2,2592.8,0.84943079]
[1646987687458,0.1928,2593.3,2592.9,0.08150042]
[1646987687661,0.1928,2593.4,2592.9,0.08150042]
[1646987687859,1.58758802,2593.3,2592.9,0.08150042]
[1646987688105,0.10796034,2593.6,2592.9,0.08150042]
[1646987688305,0.10796034,2593.6,2593.0,0.964]
[1646987688507,1.58753093,2593.5,2593.0,0.964]
[1646987689307,1.58753093,2593.5,2593.1,0.0787802]
[1646987689508,0.57990533,2593.8,2593.3,0.08083761]
[1646987689509,0.0038188,2593.8,2593.3,0.08083761]
[1646987689707,0.0038188,2593.8,2593.5,0.06974855]
[1646987689908,1.58733651,2594.0,2593.5,0.06974855]
[1646987690108,0.00381883,2593.8,2593.5,0.06974855]
[1646987690906,1.58733651,2593.9,2593.6,0.87198483]
[1646987691108,1.1927,2594.2,2593.6,0.87198483]
[1646987691109,1.0,2594.2,2593.6,0.87198483]
[1646987691308,0.00381904,2593.8,2593.5,0.06974855]
[1646987692149,1.5872556,2594.1,2593.6,0.96367]
[1646987692349,0.00179358,2593.8,2593.6,0.96367]
[1646987693353,1.5872556,2594.1,2593.6,0.96367]
[1646987693554,0.00179358,2593.8,2593.6,0.96367]
[1646987693755,0.00179358,2593.8,2593.7,0.08075802]
[1646987694555,1.5872556,2594.0,2593.7,0.08075802]
[1646987694556,0.96388,2594.1,2593.7,0.08075802]
[1646987694755,1.58727953,2594.0,2593.7,0.08075802]
[1646987694960,0.00179358,2593.9,2593.7,0.08075802]
[1646987695831,1.0,2594.2,2593.7,1.04454802]
[1646987696029,0.00413668,2593.9,2593.7,1.04454802]
[1646987697129,1.0,2594.2,2593.7,1.04454802]
[1646987697529,0.00413668,2593.9,2593.7,1.04454802]
[1646987698142,1.0,2594.2,2593.7,1.04454802]
[1646987698538,0.00413668,2593.9,2593.7,1.04454802]
[1646987699355,1.0,2594.2,2593.8,0.08287549]
[1646987699654,0.00413668,2593.9,2593.8,0.08287549]
[1646987700667,0.1927,2594.3,2593.8,0.08287549]
[1646987700855,0.00399702,2594.0,2593.8,0.08287549]
[1646987701854,0.1927,2594.3,2593.8,0.08287549]
[1646987702056,0.00399698,2594.0,2593.8,0.08287549]
[1646987703106,0.89221136,2594.3,2593.8,0.08287549]
[1646987703317,0.00399698,2594.0,2593.8,0.08287549]
[1646987704208,1.26814139,2594.4,2593.8,0.08287549]
[1646987704407,4.76814139,2594.4,2593.8,0.08287549]
[1646987704610,0.00381523,2594.0,2593.8,0.08287549]
[1646987705410,1.58716135,2594.3,2593.8,0.08287549]
[1646987705611,0.00381523,2594.0,2593.8,0.08287549]
[1646987706609,0.462,2594.1,2593.8,0.08287549]
[1646987706856,0.00381523,2594.0,2593.8,0.08287549]
[1646987707657,0.94930961,2594.0,2593.8,0.08287549]
[1646987707859,0.94549438,2594.0,2593.8,0.08287549]
[1646987708060,0.94931764,2594.0,2593.8,0.08287549]
[1646987708963,0.94549438,2594.0,2593.8,0.08287549]
[1646987709363,0.94931764,2594.0,2593.8,0.08287549]
[1646987710164,0.94549438,2594.0,2593.8,0.08287549]
[1646987710364,0.94931764,2594.0,2593.8,0.08287549]
[1646987711109,0.94814968,2594.0,2593.8,0.08287549]
[1646987711304,0.94432642,2594.0,2593.8,0.08287549]
[1646987711603,0.94814914,2594.0,2593.8,0.08287549]
[1646987712604,0.94432642,2594.0,2593.8,0.08287549]
[1646987712905,0.00382272,2594.0,2593.8,0.08287549]
[1646987713910,0.9638795,2594.1,2593.8,0.08287549]
[1646987714109,0.00382272,2594.0,2593.8,0.08287549]
[1646987714955,1.99624776,2594.1,2593.8,0.08287549]
[1646987715357,0.00382276,2594.0,2593.8,0.08287549]
[1646987716358,9.89548657,2594.5,2593.8,0.08287549]
[1646987716359,0.05128657,2594.5,2593.8,0.08287549]
[1646987716557,0.00382276,2594.0,2593.8,0.08287549]
[1646987717357,1.13783834,2594.5,2593.8,0.08287549]
[1646987717759,0.00382276,2594.0,2593.8,0.08287549]
[1646987718607,0.05128657,2594.5,2593.8,0.08287549]
[1646987718810,0.00382275,2594.0,2593.8,0.08287549]
[1646987719811,0.05128657,2594.5,2593.8,0.08287549]
[1646987720010,0.00382275,2594.0,2593.8,0.08287549]
[1646987721012,0.0518325,2594.9,2593.9,0.1927]
[1646987721212,0.0518325,2594.9,2594.1,0.96353]
[1646987721415,1.36970421,2594.9,2594.1,1.04076401]
[1646987721855,1.58664456,2594.8,2594.1,0.07723401]
[1646987722055,2.04864456,2594.8,2594.1,0.07723401]